bitfinex-derivatives/quotes_ETHF0:USTF0_20260306
["timestamp","ask_amount","ask_price","bid_price","bid_amount"]
[1772809714154,6.24252224,1981.6,1980.5,5.76619833]
[1772809714544,19.88326766,1981.7,1980.5,5.76619833]
[1772809714849,0.00386568,1981.7,1980.6,5.7615027]
[1772809715065,0.00386568,1981.7,1980.6,11.98859971]
[1772809715250,0.00386568,1981.7,1980.7,5.7615027]
[1772809715452,0.00386568,1981.7,1980.9,5.7615027]
[1772809715652,5.99408792,1981.7,1980.9,5.7615027]
[1772809715845,5.99022224,1981.6,1980.6,5.7615027]
[1772809716251,6.24252224,1981.6,1980.6,5.7615027]
[1772809716651,6.24252224,1981.6,1980.5,0.00469563]
[1772809717049,6.24252224,1981.6,1980.5,5.76619833]
[1772809717454,6.24252224,1981.6,1980.5,0.00469563]
[1772809718156,6.24252224,1981.6,1980.5,5.76619833]
[1772809719252,5.99022224,1981.6,1980.5,5.76619833]
[1772809719457,7.19386568,1981.7,1980.5,5.76619833]
[1772809719951,0.00386568,1981.7,1980.9,5.7615027]
[1772809720151,5.99408792,1981.7,1980.9,5.7615027]
[1772809720352,0.00386568,1981.7,1980.9,5.7615027]
[1772809720954,5.99408792,1981.7,1980.9,5.7615027]
[1772809721257,6.24252224,1981.6,1980.9,5.7615027]
[1772809721458,6.24252224,1981.6,1980.6,5.7615027]
[1772809721859,5.99408792,1981.7,1980.6,5.7615027]
[1772809722056,6.24638792,1981.7,1980.6,5.7615027]
[1772809722261,6.24638792,1981.7,1980.5,5.76619833]
[1772809722661,5.99022224,1981.6,1980.5,5.76619833]
[1772809723960,5.99022224,1981.4,1980.5,5.76619833]
[1772809724159,5.99022224,1981.2,1980.5,0.00469563]
[1772809724462,5.99022224,1981.6,1980.5,5.76619833]
[1772809725656,0.25232,1981.5,1980.5,5.76619833]
[1772809725855,6.24254224,1981.5,1980.5,5.76619833]
[1772809726257,6.24254224,1981.5,1980.5,0.00469563]
[1772809726657,6.24259224,1981.1,1980.5,0.00469563]
[1772809726856,5.99022224,1980.9,1980.2,5.7615027]
[1772809727269,7.2,1981.0,1980.2,5.7615027]
[1772809727455,7.201,1981.4,1980.2,5.7615027]
[1772809727860,7.201,1981.4,1980.2,5.76602898]
[1772809728160,5.99408792,1981.7,1980.4,5.7615027]
[1772809728355,6.24638792,1981.7,1980.4,5.7615027]
[1772809728563,6.24257224,1981.3,1980.4,5.7615027]
[1772809730362,6.24259224,1981.1,1980.2,0.00452628]
[1772809730562,7.203,1981.2,1980.2,5.76602898]
[1772809730760,13.44558224,1981.2,1980.2,5.76602898]
[1772809731065,6.24260224,1981.0,1980.2,5.76602898]
[1772809731363,5.99022224,1981.0,1980.2,5.76602898]
[1772809733462,5.99022224,1980.8,1980.2,0.00452628]
[1772809733670,5.99022224,1980.8,1980.0,5.7615027]
[1772809733863,5.99022224,1980.6,1980.0,5.7615027]
[1772809734063,7.205,1980.7,1980.0,5.7615027]
[1772809734658,7.205,1980.7,1980.0,5.76687667]
[1772809734862,13.19522224,1980.7,1980.0,5.76687667]
[1772809735171,6.24266224,1980.6,1979.6,12.0583918]
[1772809735358,6.24266224,1980.6,1979.6,5.83129479]
[1772809735764,5.78266224,1980.6,1979.6,5.83129479]
[1772809735959,5.53022224,1980.6,1979.6,5.83129479]
[1772809736258,6.1374043,1980.2,1979.6,0.00497987]
[1772809736459,5.8849243,1980.1,1979.6,0.00497987]
[1772809736659,7.46388425,1980.2,1979.6,5.83627466]
[1772809737169,7.21140425,1980.2,1979.6,5.83627466]
[1772809737873,13.0939243,1980.9,1979.6,5.83627466]
[1772809738168,0.25238,1981.1,1980.0,5.83129479]
[1772809738169,5.8849243,1981.0,1980.0,5.83129479]
[1772809738367,6.1373143,1980.9,1980.0,5.83129479]
[1772809738967,5.89023197,1980.9,1980.0,5.83129479]
[1772809740271,0.00530767,1980.9,1980.1,5.83129479]
[1772809740471,6.1373343,1980.8,1980.0,6.22709701]
[1772809740667,6.1373343,1980.8,1979.9,12.0583918]
[1772809741377,0.00530767,1980.9,1979.6,6.23207688]
[1772809741378,6.1373843,1980.4,1979.6,6.23207688]
[1772809741670,6.1374043,1980.2,1979.3,6.22709701]
[1772809741876,5.89451685,1980.0,1979.2,5.46775642]
[1772809742266,7.213,1980.1,1979.2,5.46775642]
[1772809742267,6.14703685,1979.9,1979.2,5.46775642]
[1772809742466,5.89451685,1979.4,1978.6,5.46775642]
[1772809742772,6.14711685,1979.3,1978.6,5.4723534]
[1772809742973,6.14711685,1979.3,1978.2,5.46775642]
[1772809743471,0.35129063,1979.4,1977.8,5.46775642]
[1772809743472,6.14717685,1978.9,1977.8,5.46775642]
[1772809743679,5.89451685,1978.7,1977.8,5.46775642]
[1772809743969,5.89451685,1978.7,1977.8,5.47263292]
[1772809744970,7.214,1978.8,1977.8,5.47263292]
[1772809745275,5.89451685,1978.9,1977.8,5.47263292]
[1772809745476,5.89451685,1978.8,1977.8,5.47263292]
[1772809746072,7.216,1978.9,1977.8,5.47263292]
[1772809746470,5.89451685,1978.8,1977.8,5.47263292]
[1772809746969,6.14718685,1978.7,1977.8,5.47263292]
[1772809747366,6.14718685,1978.7,1977.8,0.0048765]
[1772809747573,5.89451685,1978.7,1977.8,5.47263292]
[1772809747873,5.89451685,1979.3,1977.8,5.47263292]
[1772809748976,6.14718685,1978.7,1977.8,5.47263292]
[1772809749176,5.89451685,1978.5,1977.8,0.0048765]
[1772809749376,6.14722685,1978.4,1977.8,0.0048765]
[1772809749578,7.219,1978.6,1977.8,5.47263292]
[1772809749778,5.89451685,1978.7,1977.8,5.47263292]
[1772809750073,5.89451685,1978.9,1977.8,5.47263292]
[1772809750474,0.00379498,1979.4,1978.0,5.46775642]
[1772809750677,5.89831183,1979.4,1978.2,5.46775642]
[1772809750975,6.14711685,1979.3,1978.2,5.46775642]
[1772809751777,6.14716685,1978.9,1977.9,5.46775642]
[1772809752074,0.00379498,1979.4,1977.9,5.46775642]
[1772809752075,0.2527,1978.5,1977.9,5.46775642]
[1772809752270,7.221,1978.7,1977.9,5.46775642]
[1772809752677,6.14720685,1978.6,1977.9,5.46775642]
[1772809752880,7.221,1978.7,1977.9,5.46775642]
[1772809753774,5.89451685,1978.9,1977.9,5.46775642]
[1772809754172,13.36814685,1979.1,1977.9,5.46775642]
[1772809754680,7.221,1979.1,1977.9,5.46775642]
[1772809755272,13.11551685,1979.1,1977.9,5.46775642]
[1772809755477,7.221,1979.1,1977.9,5.46775642]
[1772809755677,6.14715685,1979.0,1977.9,5.46775642]
[1772809757279,7.223,1979.1,1977.9,5.46775642]
[1772809757475,7.47563,1979.1,1977.9,5.46775642]
[1772809757679,6.14716685,1978.9,1977.9,5.46775642]
[1772809757880,0.2527,1978.5,1977.9,5.46775642]
[1772809758381,0.2527,1978.5,1977.8,0.0048765]
[1772809758382,6.14721685,1978.5,1977.8,0.0048765]
[1772809758787,0.25275,1978.1,1977.4,5.46775642]
[1772809759083,5.89451685,1977.8,1977.0,5.46775642]
[1772809759983,5.89979267,1977.8,1977.0,5.47413251]
[1772809760179,6.14731685,1977.7,1977.0,5.47413251]
[1772809760383,6.14731685,1977.7,1977.0,0.00637609]
[1772809760581,6.14731685,1977.7,1976.8,0.71166614]
[1772809760887,6.14734685,1977.5,1976.3,5.46775642]
[1772809761190,5.89451685,1977.5,1976.3,5.46775642]
[1772809761382,7.224,1977.6,1976.3,5.46775642]
[1772809761582,0.00527582,1977.8,1976.5,5.46775642]
[1772809761778,0.00527582,1977.8,1976.5,19.08275642]
[1772809761984,0.00527582,1977.8,1976.6,5.46775642]
[1772809762179,6.14731685,1977.7,1976.6,5.46775642]
[1772809762883,5.89451685,1977.5,1976.6,5.46775642]
[1772809763087,5.89451685,1977.3,1976.6,5.46775642]
[1772809764288,6.14735685,1977.4,1976.6,5.46775642]
[1772809764489,6.14735685,1977.4,1976.4,5.46775642]
[1772809764690,0.2529,1977.0,1976.3,0.0042586]
[1772809764980,6.14743685,1976.8,1975.8,5.46775642]
[1772809765885,6.14743685,1976.8,1975.8,5.47212178]
[1772809766085,0.25292,1976.8,1975.8,5.47212178]
[1772809766589,6.14743685,1976.8,1975.8,5.47212178]
[1772809766984,6.14749685,1976.4,1975.8,0.00436536]
[1772809767286,6.15221751,1976.4,1975.8,0.00436536]
[1772809767482,6.15221751,1976.4,1975.5,5.46775642]
[1772809767887,5.89451685,1976.3,1975.5,5.46775642]
[1772809768189,7.48670066,1976.4,1975.5,5.46775642]
[1772809768390,5.89451685,1976.3,1975.5,5.46775642]
[1772809768591,5.89451685,1976.3,1975.5,5.4732372]
[1772809769387,0.25299,1976.2,1975.2,5.46775642]
[1772809769589,6.14753685,1976.0,1974.9,5.46775642]
[1772809769793,7.23,1975.9,1974.9,5.46775642]
[1772809770491,13.12551685,1976.3,1974.9,5.47409867]
[1772809770686,5.89451685,1976.2,1974.9,5.47409867]
[1772809771186,6.14750685,1976.2,1974.9,5.47409867]
[1772809771390,0.25306,1975.7,1974.9,5.47409867]
[1772809771693,5.89451685,1975.6,1974.9,0.00634225]
[1772809772189,5.89451685,1975.6,1974.9,5.4573775]
[1772809772392,3.01265836,1976.3,1974.9,5.4573775]
[1772809772393,12.99559141,1976.1,1974.9,5.4573775]
[1772809772689,5.76359141,1976.0,1974.9,5.4573775]
[1772809773688,6.01662141,1975.9,1974.9,0.00634225]
[1772809774489,6.01668141,1975.5,1974.9,0.00634225]
[1772809774689,7.48709,1975.5,1974.9,5.4573775]
[1772809774888,12.99859141,1976.0,1974.9,5.4573775]
[1772809775088,0.25303,1975.9,1974.9,5.4573775]
[1772809775291,6.01662141,1975.9,1974.9,5.4573775]
[1772809775689,7.235,1976.0,1974.9,5.4573775]
[1772809775887,0.25769066,1976.4,1974.9,5.4573775]
[1772809776083,6.02128207,1976.4,1975.2,5.45103525]
[1772809776287,6.01662141,1976.0,1975.2,5.45103525]
[1772809776491,0.25303,1976.0,1975.2,5.45103525]
[1772809777594,0.00472066,1976.4,1975.2,5.45103525]
[1772809778192,0.25298,1976.3,1975.2,5.45103525]
[1772809778892,6.01663141,1975.9,1975.2,5.45103525]
[1772809779891,6.01668141,1975.5,1974.9,0.00634225]
[1772809780195,0.25309,1975.5,1974.9,5.4573775]
[1772809780396,12.99959141,1976.0,1974.9,5.4573775]
[1772809780590,6.01662141,1975.9,1974.9,5.4573775]
[1772809780799,6.01668141,1975.5,1974.9,0.00634225]
[1772809781090,13.25368141,1975.5,1974.9,0.00634225]
[1772809781292,6.01670141,1975.3,1974.9,0.00634225]
[1772809781599,6.01670141,1975.3,1974.7,5.45103525]
[1772809781795,6.01670141,1975.3,1974.0,5.45103525]
[1772809782191,0.25311,1975.3,1974.0,5.45103525]
[1772809782396,7.49011,1975.3,1974.0,5.45652261]
[1772809782993,6.01672141,1975.1,1974.0,5.45652261]
[1772809784399,0.25313,1975.1,1974.0,5.45652261]
[1772809785291,6.01672141,1975.1,1974.0,5.45652261]
[1772809785491,0.25319,1974.7,1974.0,5.45652261]
[1772809785698,0.25883237,1974.7,1974.0,5.45652261]
[1772809787097,5.76359141,1975.1,1974.0,5.45652261]
[1772809787297,0.25315,1975.0,1974.0,5.45652261]
[1772809788000,6.01674141,1975.0,1974.0,5.45652261]
[1772809788200,0.00413865,1975.0,1974.0,9.6295632]
[1772809788497,0.00413865,1975.0,1974.2,5.45103525]
[1772809788897,0.25316,1974.9,1974.2,5.45103525]
[1772809790799,7.49311,1975.4,1974.4,5.45103525]
[1772809791001,0.25315,1975.0,1974.4,5.45103525]
[1772809791602,13.00359141,1975.4,1974.4,5.45103525]
[1772809791902,7.24425137,1975.4,1974.4,5.45103525]
[1772809792102,7.24425137,1975.4,1974.5,5.45103525]
[1772809792497,5.76359141,1975.9,1974.6,5.45103525]
[1772809792804,0.25304,1975.8,1974.9,5.45103525]
[1772809792997,6.01663141,1975.8,1974.9,5.45103525]
[1772809793392,0.25304,1975.8,1974.9,5.45103525]
[1772809793593,0.25304,1975.8,1974.8,4.17304059]
[1772809793594,6.01669141,1975.4,1974.7,5.45103525]
[1772809793799,6.01674141,1975.0,1974.3,5.45103525]
[1772809794301,7.238,1975.2,1974.5,5.45103525]
[1772809794492,7.238,1975.2,1974.6,5.45103525]
[1772809794694,6.01672141,1975.1,1974.6,5.45103525]
[1772809794894,6.01672141,1975.1,1974.4,5.45103525]
[1772809795091,6.01672141,1975.1,1974.4,9.62407584]
[1772809795092,0.25313,1975.1,1974.4,9.62407584]
[1772809795298,0.25313,1975.1,1974.5,5.21189872]
[1772809795703,5.76359141,1975.4,1974.6,5.21189872]
[1772809796002,0.25311,1975.3,1974.6,5.21189872]
[1772809796999,5.99138995,1975.3,1974.5,4.17304059]
[1772809797200,5.73827995,1974.8,1974.1,5.21189872]
[1772809797401,0.25319,1974.7,1974.1,5.21189872]
[1772809798003,5.99146995,1974.7,1974.1,5.21189872]
[1772809798401,5.99146995,1974.7,1974.0,0.00548736]
[1772809798699,5.99146995,1974.7,1974.0,5.21738608]
[1772809798900,5.99145995,1974.8,1974.0,4.17852795]
[1772809799103,5.99145995,1974.8,1974.0,0.00548736]
[1772809799898,5.68683235,1974.4,1973.5,5.21189872]
[1772809800103,5.68686235,1974.1,1973.5,5.21189872]
[1772809800302,0.25326,1974.1,1973.5,5.21189872]
[1772809800503,7.238,1974.3,1973.6,5.21189872]
[1772809800703,7.238,1974.3,1973.8,5.21189872]
[1772809800902,7.238,1974.7,1973.8,5.21731062]
[1772809801204,7.238,1974.7,1974.0,5.21189872]
[1772809801506,0.25314,1975.1,1974.0,5.21189872]
[1772809801507,0.25314,1975.1,1974.0,9.38493931]
[1772809801701,7.238,1975.3,1974.2,4.17304059]
[1772809801898,0.25312,1975.2,1974.5,9.82099347]
[1772809802102,5.60692659,1975.2,1974.3,9.82099347]
[1772809802306,0.00383008,1975.3,1974.3,5.64795288]
[1772809802503,0.00383008,1975.3,1974.6,9.82099347]
[1772809802698,0.25305,1975.8,1974.8,5.64795288]
[1772809802905,7.239,1976.1,1975.1,5.64795288]
[1772809803106,0.25302,1976.0,1975.1,9.82099347]
[1772809803305,5.60494007,1976.0,1975.1,5.24235288]
[1772809803509,0.25296,1976.5,1975.5,5.64795288]
[1772809803807,0.25950464,1976.5,1975.7,5.64795288]
[1772809804007,0.25950464,1976.5,1975.8,5.64795288]
[1772809804601,0.25289,1977.1,1975.8,5.64795288]
[1772809804908,5.97182401,1976.9,1976.0,5.64795288]
[1772809805103,0.2529,1976.9,1976.1,5.64795288]
[1772809805699,6.01073595,1976.9,1975.9,5.64795288]
[1772809805906,6.00645667,1976.7,1975.7,5.64795288]
[1772809806107,0.25302,1976.0,1975.5,0.00386073]
[1772809806408,0.25302,1976.0,1975.0,5.64795288]
[1772809806409,6.00656667,1975.8,1975.0,5.64795288]
[1772809806707,6.00663667,1975.3,1974.5,5.64795288]
[1772809807106,0.25311,1975.3,1974.3,5.64795288]
[1772809807406,7.237,1975.9,1974.9,5.64795288]
[1772809807611,7.49001,1976.1,1975.1,5.64795288]
[1772809807908,0.25301,1976.1,1975.3,5.64795288]
[1772809808206,6.00653667,1976.1,1975.3,5.64795288]
[1772809808507,6.01193755,1976.1,1975.3,5.64795288]
[1772809808707,6.01193755,1976.1,1974.9,4.17304059]
[1772809808708,6.00655667,1975.9,1974.9,4.17304059]
[1772809808912,6.00655667,1975.9,1974.9,5.64795288]
[1772809809111,0.25303,1975.9,1974.9,5.64795288]
[1772809809411,7.237,1976.0,1975.1,5.64795288]
[1772809809608,13.24354667,1976.0,1975.1,5.64795288]
[1772809811012,7.49002,1976.0,1975.1,5.64795288]
[1772809811311,6.00656667,1975.8,1975.0,4.17304059]
[1772809811510,6.00656667,1975.8,1975.1,5.64795288]
[1772809812109,0.25304,1975.8,1975.1,5.64795288]
[1772809812508,7.237,1976.0,1975.1,5.64795288]
[1772809813112,6.00655667,1975.9,1975.1,5.64795288]
[1772809813311,0.25303,1975.9,1975.1,5.64795288]
[1772809813513,7.237,1976.0,1975.2,5.64795288]
[1772809813703,0.25303,1975.9,1975.2,5.64795288]
[1772809813911,6.00655667,1975.9,1975.2,5.64795288]
[1772809814212,0.25303,1975.9,1975.2,5.64795288]
[1772809815512,7.237,1976.0,1975.2,5.64795288]
[1772809815716,0.00540088,1976.1,1975.2,5.64795288]
[1772809815906,0.00540088,1976.1,1975.3,5.64795288]
[1772809816107,0.00540088,1976.1,1975.3,9.82099347]
[1772809816312,6.00654667,1976.0,1975.5,5.64795288]
[1772809816513,0.25308,1975.6,1975.3,5.64795288]
[1772809816810,5.75352667,1976.0,1975.2,5.64795288]
[1772809817015,7.49741088,1976.1,1975.2,5.64795288]
[1772809817314,6.00661667,1975.5,1974.8,4.17304059]
[1772809817514,13.24561667,1975.5,1974.7,5.64795288]
[1772809817715,13.24561667,1975.5,1974.5,4.17304059]
[1772809817716,0.25316,1974.9,1974.5,5.64795288]
[1772809818109,12.99252667,1975.5,1974.5,5.64795288]
[1772809818314,7.239,1975.5,1974.5,5.64795288]
[1772809818512,0.2531,1975.4,1974.5,5.64795288]
[1772809819014,13.24656667,1975.9,1974.7,5.64795288]
[1772809819210,0.00540088,1976.1,1974.8,9.82099347]
[1772809819518,0.00540088,1976.1,1975.3,5.64795288]
[1772809819812,0.00540088,1976.1,1975.4,5.64795288]
[1772809820015,0.25297,1976.4,1975.5,5.64795288]
[1772809820514,7.24,1976.5,1975.6,5.64795288]
[1772809820721,13.24643667,1976.9,1975.8,5.64795288]
[1772809821018,7.49812454,1976.9,1975.9,5.64795288]
[1772809821319,0.25812454,1976.9,1976.1,5.64795288]
[1772809821508,6.01165121,1976.9,1976.1,5.64795288]
[1772809821708,0.25296,1976.5,1975.8,4.17700532]
[1772809821919,0.00521454,1976.9,1976.1,5.64795288]
[1772809822219,0.25292,1976.8,1976.1,5.64795288]
[1772809822619,6.00644667,1976.8,1976.1,5.64795288]
[1772809822816,0.25292,1976.8,1976.1,5.64795288]
[1772809823015,6.00644667,1976.8,1976.1,5.64795288]
[1772809824017,0.25292,1976.8,1976.1,5.64795288]
[1772809824922,6.00644667,1976.8,1976.1,5.64795288]
[1772809825220,0.00521454,1976.9,1976.1,5.64795288]
[1772809826728,7.24,1977.2,1976.2,5.64795288]
[1772809826920,7.24,1977.2,1976.3,5.64795288]
[1772809827326,2.58164995,1977.5,1976.5,5.64795288]
[1772809827525,6.00636667,1977.4,1976.5,5.64795288]
[1772809827827,6.01022064,1977.4,1976.5,5.64795288]
[1772809828326,13.25022064,1977.4,1976.5,5.64795288]
[1772809828625,0.25287,1977.2,1976.5,5.64795288]
[1772809829217,7.24385397,1977.4,1976.5,5.64795288]
[1772809829523,0.25286,1977.3,1976.4,5.64795288]
[1772809829926,7.24385397,1977.4,1976.4,5.64795288]
[1772809830125,7.24385397,1977.4,1976.5,5.64795288]
[1772809830426,6.00637667,1977.3,1976.5,5.64795288]
[1772809830626,0.25285,1977.3,1976.5,5.64795288]
[1772809831325,0.00385397,1977.4,1976.5,5.64795288]
[1772809831528,0.00385397,1977.4,1976.6,5.64795288]
[1772809832227,5.49941617,1977.4,1976.6,5.64795288]
[1772809832723,0.25670397,1977.4,1976.6,5.64795288]
[1772809833224,0.00385397,1977.4,1976.6,5.64795288]
[1772809833430,5.24656617,1977.4,1976.6,5.64795288]
[1772809833826,0.00385397,1977.4,1976.6,5.64795288]
[1772809834031,7.49282,1977.6,1976.7,5.2061131]
[1772809834434,7.49282,1977.6,1976.8,5.2061131]
[1772809834627,0.25276,1978.1,1976.8,5.2061131]
[1772809834828,12.4827122,1978.5,1977.2,5.2061131]
[1772809835024,12.82653394,1978.5,1977.3,5.2061131]
[1772809835324,7.24382098,1978.5,1977.4,5.2061131]
[1772809835528,7.24382098,1978.5,1977.6,5.2061131]
[1772809835732,5.4954222,1978.4,1977.6,5.2061131]
[1772809836326,0.25271,1978.4,1977.6,5.2061131]
[1772809836527,5.4954222,1978.4,1977.3,5.2061131]
[1772809836729,5.4954822,1978.0,1977.3,5.2061131]
[1772809836923,12.4827122,1978.0,1977.2,0.00421276]
[1772809837134,5.2427122,1977.9,1976.9,5.2061131]
[1772809837726,12.4827122,1978.0,1976.9,5.2061131]
[1772809837929,5.4954922,1977.9,1976.9,5.2061131]
[1772809838130,5.4954922,1977.9,1976.9,5.21249459]
[1772809838429,5.2427122,1977.9,1976.9,5.21249459]
[1772809838630,5.4955522,1977.4,1976.5,5.2061131]
[1772809838835,12.7355522,1977.4,1976.5,5.2061131]
[1772809839129,7.24,1977.7,1976.6,5.2061131]
[1772809839335,5.2427122,1978.3,1976.8,5.2061131]
[1772809839535,5.2427122,1978.2,1977.0,5.2061131]
[1772809839737,5.2427122,1978.2,1977.1,5.2061131]
[1772809839931,0.00382098,1978.5,1977.3,5.2061131]
[1772809840133,0.00382098,1978.5,1977.8,5.2061131]
[1772809840540,5.24653318,1978.5,1977.8,5.2061131]
[1772809840740,5.4954222,1978.4,1977.6,5.2061131]
[1772809841038,5.4954222,1978.4,1977.1,4.17304059]
[1772809841039,5.4954222,1978.4,1977.3,5.2061131]
[1772809841435,0.00382098,1978.5,1977.3,5.2061131]
[1772809841635,0.00382098,1978.5,1977.5,5.2061131]
[1772809842131,5.4954222,1978.4,1977.5,5.2061131]
[1772809843433,5.4954522,1978.2,1977.2,5.2061131]
[1772809845438,5.4955022,1977.8,1977.0,5.2061131]
[1772809845643,5.4955222,1977.6,1976.8,5.20997764]
[1772809846038,5.2427122,1977.9,1976.8,5.20997764]
[1772809846338,0.25276,1978.1,1976.9,5.2061131]
[1772809846538,5.4954722,1978.1,1977.0,5.2061131]
[1772809846738,5.2427122,1977.6,1977.0,5.2061131]
[1772809847143,5.2427122,1977.8,1977.0,5.2061131]
[1772809847342,5.2427122,1978.1,1977.0,5.2061131]
[1772809847845,5.4954722,1978.0,1977.0,5.2061131]
[1772809848339,7.237,1978.1,1977.1,5.2061131]
[1772809848545,12.7324622,1978.1,1977.1,5.2061131]
[1772809849045,5.4954922,1977.9,1977.1,5.2061131]
[1772809849743,5.2427122,1977.2,1976.8,4.17690513]
[1772809849935,5.2427122,1977.2,1976.8,0.00386454]
[1772809850141,5.4955922,1977.1,1976.8,0.00386454]
[1772809850336,5.50112258,1977.1,1976.4,9.37915369]
[1772809850536,5.4956522,1976.7,1976.0,9.37915369]
[1772809850746,5.2427122,1976.9,1976.1,5.2061131]
[1772809851147,0.00553038,1977.1,1976.1,5.2061131]
[1772809851148,5.4956322,1976.8,1976.1,5.2061131]
[1772809851343,5.4956322,1976.8,1976.1,0.00622093]
[1772809852044,5.2427122,1976.3,1975.6,9.37915369]
[1772809852241,5.2427122,1976.3,1975.7,5.2061131]
[1772809852436,5.2427122,1976.6,1975.7,5.2061131]
[1772809853043,5.2427122,1976.6,1975.8,5.2061131]
[1772809853642,5.2427122,1977.0,1976.0,4.17304059]
[1772809853846,5.2427122,1976.6,1975.9,9.37915369]
[1772809854040,5.2427122,1976.6,1975.9,5.2061131]
[1772809854241,5.2427122,1976.6,1975.8,5.2061131]
[1772809854440,5.2427122,1976.4,1975.7,0.00601256]
[1772809854645,5.2427122,1976.4,1975.7,5.21212566]
[1772809854847,5.2427122,1976.4,1975.4,4.17304059]
[1772809855045,7.236,1976.6,1975.1,5.2061131]
[1772809855046,5.4957622,1975.8,1975.1,5.2061131]
[1772809855440,5.2427122,1975.8,1975.1,5.2061131]
[1772809855841,5.2427122,1975.8,1975.1,5.21149899]
[1772809856151,12.98560358,1976.0,1975.1,5.21149899]
[1772809856346,5.74960358,1976.3,1975.1,5.21149899]
[1772809858352,5.74960358,1976.1,1975.1,5.21149899]
[1772809858552,5.74960358,1975.9,1975.1,5.21149899]
[1772809859055,5.74960358,1976.5,1975.1,5.21149899]
[1772809859354,5.74960358,1976.4,1975.3,5.39815566]
[1772809859554,5.74960358,1976.4,1975.4,5.39815566]
[1772809859755,7.237,1976.5,1975.4,5.39815566]
[1772809859951,7.237,1976.5,1975.5,5.39815566]
[1772809859952,12.98660358,1976.5,1975.5,5.39815566]
[1772809860649,5.74960358,1977.0,1975.5,5.39815566]
[1772809860848,5.74960358,1977.0,1975.7,5.39815566]
[1772809861054,5.74960358,1977.0,1975.9,5.39815566]
[1772809861249,5.74960358,1977.5,1976.0,5.39815566]
[1772809861453,5.74960358,1977.5,1976.3,5.39815566]
[1772809861653,6.00244358,1977.4,1976.3,5.39815566]
[1772809862151,0.25284,1977.4,1976.3,9.57119625]
[1772809862352,5.69836403,1977.4,1976.4,5.53289155]
[1772809862554,0.0038097,1977.4,1976.4,9.70593214]
[1772809862753,0.0038097,1977.4,1976.6,5.53289155]
[1772809863054,0.25285,1977.3,1976.6,5.53713942]
[1772809863256,5.69456433,1977.3,1976.6,5.53713942]
[1772809863558,5.69456433,1977.3,1976.6,0.00424787]
[1772809863755,5.69456433,1977.3,1976.1,5.53289155]
[1772809864358,5.44171433,1976.8,1976.1,5.53289155]
[1772809864556,5.44171433,1977.0,1976.1,5.53289155]
[1772809864756,5.44171433,1977.0,1976.1,0.00415838]
[1772809864961,5.44171433,1976.5,1976.1,0.00415838]
[1772809865259,5.69470433,1976.2,1975.4,5.53289155]
[1772809865557,5.69470433,1976.2,1975.2,5.53289155]
[1772809866363,5.69470433,1976.2,1975.2,5.53794343]
[1772809866853,5.69470433,1976.2,1975.2,0.00505188]
[1772809867057,5.44171433,1975.7,1975.2,0.00505188]
[1772809867257,5.44710192,1975.7,1975.2,0.00505188]
[1772809867662,5.44710192,1975.7,1974.8,5.53289155]
[1772809868258,0.00538759,1975.7,1974.8,5.53289155]
[1772809868458,0.00538759,1975.7,1974.8,9.70593214]
[1772809868659,5.44171433,1976.1,1974.9,5.53289155]
[1772809868860,5.44171433,1975.9,1974.9,5.53289155]
[1772809869264,0.25302,1976.0,1974.9,5.53289155]
[1772809869469,0.34099348,1976.6,1975.1,5.53289155]
[1772809869470,0.25296,1976.5,1975.1,5.53289155]
[1772809869763,5.70082451,1976.5,1975.3,5.53289155]
[1772809870362,0.00615018,1976.5,1975.5,9.70593214]
[1772809870666,5.69466433,1976.6,1975.7,5.53289155]
[1772809871269,0.25295,1976.6,1975.7,5.53289155]
[1772809871769,0.25945178,1976.6,1975.8,5.53289155]
[1772809872364,5.70116611,1976.6,1975.8,5.53289155]
[1772809872861,0.25945178,1976.6,1975.8,5.53289155]
[1772809873569,5.70116611,1976.6,1975.8,5.53289155]
[1772809873766,0.25945178,1976.6,1975.8,5.53289155]
[1772809874361,7.219,1977.0,1976.0,9.70593214]
[1772809874565,7.219,1977.0,1976.2,5.53289155]
[1772809874764,12.66071433,1977.0,1976.2,5.53289155]
[1772809875566,12.66523035,1977.0,1976.2,5.53289155]
[1772809875865,5.44171433,1977.4,1976.2,5.53289155]
[1772809876066,5.44171433,1977.4,1976.4,5.53289155]
[1772809876367,5.44171433,1977.4,1976.6,5.53289155]
[1772809876560,5.44171433,1977.4,1976.5,4.17304059]
[1772809876561,5.44171433,1977.8,1976.9,5.53289155]
[1772809876765,5.69451433,1977.7,1976.9,5.53289155]
[1772809877171,5.6992128,1977.7,1976.9,0.00407367]
[1772809877363,5.44171433,1977.2,1976.6,4.17304059]
[1772809877565,5.44171433,1977.0,1976.3,9.70593214]
[1772809877861,0.09273677,1977.7,1976.0,7.84566679]
[1772809877862,5.44171433,1976.8,1976.0,9.70593214]
[1772809878062,5.44171433,1977.0,1976.2,5.53289155]
[1772809878460,5.44171433,1977.2,1976.3,5.53289155]
[1772809878664,5.44171433,1977.2,1976.4,5.53289155]
[1772809879469,5.44171433,1977.4,1976.6,5.53289155]
[1772809879665,0.00469847,1977.7,1976.4,6.22709701]
[1772809879666,5.69459433,1977.1,1976.4,9.70593214]
[1772809879865,5.44171433,1977.1,1976.5,9.70593214]
[1772809880066,5.44171433,1977.5,1976.6,5.53289155]
[1772809880270,5.44171433,1977.5,1976.6,9.70593214]
[1772809880471,5.44171433,1977.3,1976.6,5.53289155]
[1772809881470,0.00469847,1977.7,1976.6,9.70593214]
[1772809881471,5.4464128,1977.7,1976.6,9.70593214]
[1772809881670,5.44171433,1977.5,1976.7,5.53289155]
[1772809881872,5.44171433,1977.3,1976.5,9.70593214]
[1772809882070,5.44171433,1977.6,1976.7,5.53289155]
[1772809882267,0.00469847,1977.7,1976.8,9.70593214]
[1772809882573,5.44171433,1978.1,1977.3,5.53289155]
[1772809882770,5.44171433,1978.4,1977.4,5.53289155]
[1772809882973,5.44171433,1978.4,1977.3,4.17304059]
[1772809882974,5.44171433,1978.7,1977.6,5.53289155]
[1772809883774,5.69440433,1978.6,1977.6,5.53913343]
[1772809885575,0.25274,1978.2,1977.6,5.53913343]
[1772809885774,5.44171433,1978.4,1977.6,5.53913343]
[1772809885969,5.44797995,1978.7,1977.6,5.53913343]
[1772809886176,0.00626562,1978.7,1977.9,5.53289155]
[1772809886777,5.44171433,1979.1,1977.9,5.53289155]
[1772809887473,5.44171433,1978.7,1977.7,9.70593214]
[1772809887679,5.44171433,1978.7,1977.7,5.53289155]
[1772809887680,5.4462438,1978.7,1977.7,5.53289155]
[1772809888173,5.44171433,1978.5,1977.6,0.00624188]
[1772809888376,5.44171433,1978.3,1977.6,0.00624188]
[1772809888572,5.69445433,1978.2,1977.6,0.00624188]
[1772809889780,0.00452947,1978.7,1977.6,5.53913343]
[1772809889974,0.00452947,1978.7,1977.7,5.53289155]
[1772809889975,5.4462438,1978.7,1977.7,5.53289155]
[1772809890278,5.44171433,1979.1,1977.9,5.53289155]
[1772809890482,5.44171433,1979.1,1978.0,5.53289155]